Cogmind - Beta 15 @@@ ROGUE MODE // 2025.05.27 @ 17:06:45 Player: morimori Result: Destroyed by Y-64 Sentinel with Wave Gun Performance ------------- Evolutions (4) 2000 Regions Visited (10) 2000 Robots Destroyed (93) 465 Value Destroyed (2469) 2469 Prototype IDs (12) 240 Alien Tech Used (0) 0 Bonus (1795) 1795 TOTAL SCORE: 8969 Bonus ------- Follower Combat Kills 1091 Registered with UFD 300 Met Optimus in HQ 500 Friendly Fire -96 Cogmind --------- Core Integrity 0/850 Matter 195/300 Energy 160/160 System Corruption 0% Temperature Cool (36) Movement Hovering (115) Ox1 Location -6/Archives Parts ------- > --- POWER (1) -------- Light Fission Core > --- PROPULSION (5) --- Gravmag System Gravmag System Gravmag System Combat Airjet > --- UTILITY (7) ------ High-capacity Storage Unit Experimental Signal Interpreter Makeshift Hacking Suite Improved Hacking Suite Improved Hacking Suite Improved System Shield > --- WEAPON (2) ------- (None) > --- INVENTORY (20) --- Light Angular Momentum Engine Light Angular Momentum Engine Combat Airjet Large Storage Unit Experimental Sensor Array Authchip [Device] Authchip [Device] Authchip [Storage] Authchip [Processor] Authchip [Processor] Authchip [Processor] Authchip [Processor] Authchip [Armor] Authchip [Weapon] Improved System Restoration Module Phase Cannon Phasing Sabre DRS Beacon (Ready) Peak State ------------ > --- POWER ------------ Light Angular Momentum Engine > --- PROPULSION ------- Combat Airjet Combat Airjet Combat Airjet Combat Airjet Antigrav System > --- UTILITY ---------- Large Storage Unit Experimental Sensor Array Experimental Signal Interpreter Makeshift Hacking Suite Makeshift Hacking Suite Improved Hacking Suite System Restoration Module > --- WEAPON ----------- Phase Cannon Phasing Sabre > --- INVENTORY -------- Light Fission Core Combat Airjet High-capacity Storage Unit Authchip [Device] Authchip [Device] Authchip [Storage] Authchip [Processor] Authchip [Processor] Authchip [Processor] Authchip [Processor] Authchip [Armor] Authchip [Weapon] Heavy Rocket Launcher Heavy Rocket Launcher DRS Beacon [Rating: 83] Favorites ----------- Power Light Angular Momentum Engine Engine Light Angular Momentum Engine Power Core Micro Nuclear Core Propulsion Gravmag System Treads Overtuned Medium Treads Wheel Wheel Hover Unit Gravmag System Utility Improved Hacking Suite Device Experimental Sensor Array Storage Large Storage Unit Processor Experimental Signal Interpreter Hackware Improved Hacking Suite Protection Hardened Light Armor Plating Weapon High-powered Shotgun Energy Gun Overtuned Pulse Rifle Energy Cannon Phase Cannon Ballistic Gun High-powered Shotgun Ballistic Cannon Magnetic Acceleration Cannon Launcher Heavy Rocket Launcher Slashing Weapon Phasing Sabre Piercing Weapon Heavy Pick Build | -11 -10 -10 -9 -9 -9 -9 -6 -6 -6 -6 ------- Run | Yrd Mat Min Mat Sto Rec Scr Fac Ext Cet Arc Slots Evolved 8 | . . . 2 . . . 6 . . . Power . | . . . . . . . . . . . Propulsion 3 | . . . . . . . 3 . . . Utility 5 | . . . 2 . . . 3 . . . Weapon . | . . . . . . . . . . . Parts Attached 93 | 7 10 7 16 5 4 7 24 5 . 8 Power 13 | 1 2 . 2 2 1 . 2 1 . 2 Engine 10 | 1 2 . 2 2 . . 1 1 . 1 Core 3 | . . . . . 1 . 1 . . 1 Reactor . | . . . . . . . . . . . Propulsion 29 | 2 . 5 2 1 . 4 11 . . 4 Treads 1 | . . . . . . 1 . . . . Leg . | . . . . . . . . . . . Wheel 13 | 2 . 5 2 1 . 3 . . . . Hover 15 | . . . . . . . 11 . . 4 Flight . | . . . . . . . . . . . Utility 26 | 2 4 . 4 2 3 1 6 2 . 2 Device 5 | 1 1 . . . . . 2 1 . . Storage 4 | 1 2 . . . . . 1 . . . Processor 1 | . . . . . . 1 . . . . Hackware 8 | . . . . . 2 . 3 1 . 2 Protection 8 | . 1 . 4 2 1 . . . . . Artifact . | . . . . . . . . . . . Weapon 25 | 2 4 2 8 . . 2 5 2 . . Energy Gun 3 | . . . 2 . . 1 . . . . Energy Cannon 1 | . . . . . . . 1 . . . Ballistic Gun 12 | 2 3 1 6 . . . . . . . Ballistic Cannon 2 | . . . . . . . 2 . . . Launcher 5 | . 1 1 . . . 1 1 1 . . Special Weapon . | . . . . . . . . . . . Impact Weapon . | . . . . . . . . . . . Slashing Weapon 1 | . . . . . . . . 1 . . Piercing Weapon 1 | . . . . . . . 1 . . . Special Melee Weapon . | . . . . . . . . . . . Unidentified Prototypes . | . . . . . . . . . . . Parts Lost 26 | . 2 . 2 5 . 5 1 2 8 1 Power 4 | . 1 . . 1 . 1 . . 1 . Propulsion 11 | . . . 1 2 . 2 1 . 4 1 Utility 7 | . 1 . . 2 . 1 . 2 1 . Weapon 4 | . . . 1 . . 1 . . 2 . Highest Loss Streak 8 | . 1 . 2 5 . 5 1 1 8 1 To Critical Strikes . | . . . . . . . . . . . Average Backups 16 | 2 17 20 19 19 19 19 13 14 14 13 Power 1 | 1 2 2 2 2 1 1 1 1 1 1 Propulsion 3 | . 5 7 7 6 7 6 1 1 . . Utility 8 | . 3 4 3 4 6 9 8 10 10 10 Weapon 3 | . 6 7 7 7 5 2 2 2 2 . Tool/Special . | . . . . . . . . . . . Unused Backups 32 | 1 3 4 1 . 4 4 3 . . 12 Power 6 | 1 1 1 . . 1 . 1 . . 1 Propulsion 7 | . . 2 . . 1 3 1 . . . Utility 13 | . . 1 1 . . . . . . 11 Weapon 6 | . 2 . . . 2 1 1 . . . Tool/Special . | . . . . . . . . . . . Average Slot Usage (%) 93 | . 99 100 97 92 93 98 91 97 64 90 Engine 5 | . 13 14 11 10 3 . . 2 4 5 Core 2 | . . . . . 7 11 4 3 . . Wheel 10 | . 28 28 21 21 22 20 . . . . Hover 16 | . . . . . . . 32 33 24 29 Device 8 | . 12 14 11 11 11 8 7 11 . 5 Storage 8 | . 14 14 11 11 11 11 6 6 6 6 Processor 3 | . . . . . . 2 6 6 6 6 Hackware 16 | . . . . . 10 21 22 20 15 25 Protection 2 | . . . 20 15 5 . . . . . Ballistic Gun 10 | . 27 24 20 22 22 19 . . . . Slashing Weapon 2 | . . . . . . . . 1 . 5 Peak Build Rating 83 | 7 10 12 21 21 26 44 81 83 76 79 Average Rating 48 | 6 9 10 17 18 22 29 69 79 52 72 On Entrance 27 | . 7 10 12 21 18 26 24 81 74 34 Naked Turns . | . . . . . . . . . . . Heaviest Build 64 | 14 53 51 64 64 59 53 50 58 63 49 Greatest Support 60 | 26 26 26 20 20 20 22 59 59 60 51 Greatest Overweight (x) 17 | . 2 2 6 5 2 17 1 . 1 1 Average Overweight (x) 1 | . . 1 2 2 2 2 . . . . Largest Inventory Capacity 20 | 8 20 20 20 20 20 20 20 20 20 20 Average Capacity 17 | 7 18 20 20 20 20 20 16 15 17 15 Most Carried 20 | 6 20 20 20 20 20 20 18 17 16 18 Average Carried 16 | 2 17 19 19 19 19 19 14 15 15 14 Final Capacity 20 | 8 20 20 20 20 20 20 15 20 15 20 Final Carried 20 | 5 20 20 20 20 20 19 15 16 15 18 Class Distribution -------------------- 50% | Hacker-Mutant 22% | Commander-Mutant 18% | Scavenger-Mutant 8% | Mutant Dominant Class ---------------- Mutant | -10/Materials Scavenger-Mutant | -10/Mines Scavenger-Mutant | -9/Materials Scavenger-Mutant | -9/Storage Commander-Mutant | -9/Recycling Commander-Mutant | -9/Scraptown Hacker-Mutant | -6/Factory Hacker-Mutant | -6/Extension Hacker-Mutant | -6/Cetus Hacker-Mutant | -6/Archives Resources | -11 -10 -10 -9 -9 -9 -9 -6 -6 -6 -6 ----------- Run | Yrd Mat Min Mat Sto Rec Scr Fac Ext Cet Arc Matter Collected 2728 | 298 271 375 552 240 98 241 381 133 . 139 Remotely . | . . . . . . . . . . . Salvage Created 3241 | 129 407 115 784 494 107 451 316 294 5 139 Parts 190 | 9 27 6 63 21 4 20 16 11 1 12 Haulers Intercepted . | . . . . . . . . . . . Recyclers Shooed 7 | . . . 1 1 . . 1 4 . . Parts Field Recycled . | . . . . . . . . . . . Retrieved Matter . | . . . . . . . . . . . Parts Self-Destructed . | . . . . . . . . . . . Prevented . | . . . . . . . . . . . Kills | -11 -10 -10 -9 -9 -9 -9 -6 -6 -6 -6 ------- Run | Yrd Mat Min Mat Sto Rec Scr Fac Ext Cet Arc Combat Hostiles Destroyed 64 | . 13 12 17 8 1 8 4 1 . . Guns 33 | . 7 . 14 8 1 3 . . . . Cannons 2 | . . . . . . . 1 1 . . AOE 29 | . 6 12 3 . . 5 3 . . . Classes Destroyed 17 | 2 4 1 2 1 1 5 1 . . . Builder 3 | . . . 2 . . . 1 . . . Tunneler 3 | 2 . . . . . . 1 . . . Recycler 9 | 1 . 1 2 2 1 . 1 1 . . Mechanic 1 | . . . . . . . 1 . . . Operator 12 | . 2 . 3 . . . . 3 . 4 Watcher 9 | . 2 . 3 . . . 2 1 1 . Swarmer 19 | . 6 3 7 . . . 3 . . . Grunt 16 | . 7 . 5 2 . 1 . 1 . . Duelist 1 | . . . . 1 . . . . . . Sentry 10 | . . . 5 5 . . . . . . Programmer 2 | . . . . . 1 . 1 . . . Federalist 1 | . . . . . . 1 . . . . Explorer 1 | . . . . . . 1 . . . . Ranger 1 | . . . . . . 1 . . . . Guru 1 | . . . . . . 1 . . . . Scrapper 4 | . . . . . . 4 . . . . Assembled 9 | . . 9 . . . . . . . . Best Kill Streak 6 | 3 4 3 6 4 2 5 4 1 1 1 Combat Bots Only 5 | . 4 3 4 4 1 5 3 1 . . Max Kills in Single Turn 4 | 1 2 2 4 1 1 2 2 1 1 1 Gunslinging . | . . . . . . . . . . . Exploded 3 | . 2 2 3 . . 2 2 . . . Melee . | . . . . . . . . . . . Uniques/NPCs Destroyed . | . . . . . . . . . . . Combat | -11 -10 -10 -9 -9 -9 -9 -6 -6 -6 -6 -------- Run | Yrd Mat Min Mat Sto Rec Scr Fac Ext Cet Arc Hostile Shots Fired 417 | . 52 9 76 30 3 45 22 103 62 15 Missed 136 | . 14 3 17 4 . 8 10 58 19 3 Hits 281 | . 38 6 59 26 3 37 12 45 43 12 Melee 6 | . . 1 . 5 . . . . . . Projectile 275 | . 38 5 59 21 3 37 12 45 43 12 Critical Strikes 15 | . . . 2 1 . 4 1 1 4 2 Damage Taken 4694 | . 508 157 735 469 41 582 225 544 1165 268 Core 1299 | . 85 40 79 64 12 155 91 166 517 90 Absorbed by Shields 210 | . . . . . 4 71 . 135 . . Regen/Repaired (Parts) 41 | . 12 . . . . . 29 . . . Core Remaining (%) 57 | 100 . 50 . . . 22 . . . . Volleys Fired 266 | 7 57 18 72 26 5 21 35 19 2 4 Largest 2 | 2 2 2 2 2 2 2 2 1 2 1 Hottest 129 | 40 40 40 90 50 50 105 129 85 78 85 Shots Fired 443 | 14 110 22 141 52 10 29 38 19 4 4 Gun 347 | 14 106 8 140 52 10 17 . . . . Cannon 57 | . . . . . . . 36 17 . 4 Launcher 39 | . 4 14 1 . . 12 2 2 4 . Special . | . . . . . . . . . . . Kinetic 343 | 14 106 8 132 52 10 8 13 . . . Thermal 53 | . . . . . . 9 23 17 . 4 Explosive 27 | . 4 14 1 . . . 2 2 4 . Electromagnetic 20 | . . . 8 . . 12 . . . . Robot Hit Streak 19 | 10 19 5 10 7 3 9 4 6 . 2 Robot Miss Streak 5 | 1 5 3 4 4 2 4 1 1 . . Penetration Max . | . . . . . . . . . . . Secondary Targets . | . . . . . . . . . . . Shots Hit Robots 281 | 10 67 11 88 37 9 15 21 16 . 7 Core Hits 179 | 5 32 18 47 21 6 17 12 11 8 2 Critical Kills . | . . . . . . . . . . . Critical Parts Destroyed . | . . . . . . . . . . . Critical Strikes 4 | . . . . . . 1 3 . . . Burn 1 | . . . . . . 1 . . . . Blast 1 | . . . . . . . 1 . . . Impale 2 | . . . . . . . 2 . . . Melee Attacks 53 | . . . . . . . 28 18 . 7 Impact . | . . . . . . . . . . . Slashing 14 | . . . . . . . . 7 . 7 Piercing 39 | . . . . . . . 28 11 . . Sneak Attacks 13 | . . . . . . . 4 3 . 6 Combat Hostiles . | . . . . . . . . . . . Follow-up Attacks . | . . . . . . . . . . . Damage Inflicted 7831 | 112 929 688 1283 750 197 722 1175 922 396 657 Guns 3198 | 112 687 79 1102 750 197 271 . . . . Cannons 529 | . . . . . . . 281 216 . 32 Explosions 2352 | . 242 609 181 . . 415 264 245 396 . Melee 1690 | . . . . . . . 604 461 . 625 Ramming 62 | . . . . . . 36 26 . . . Kinetic 3181 | 112 687 79 1079 750 197 101 176 . . . Thermal 804 | . . . 46 . . 405 105 216 . 32 Explosive 1891 | . 242 609 135 . . . 264 245 396 . Electromagnetic 203 | . . . 23 . . 180 . . . . Impact . | . . . . . . . . . . . Slashing 750 | . . . . . . . . 125 . 625 Piercing 940 | . . . . . . . 604 336 . . Highest Corruption 1 | . . . . . . 1 1 . . . Average Corruption 1 | . . . . . . 1 1 . . . Corruption Purged 1 | . . . . . . . 1 . . . Corruption Blocked . | . . . . . . . . . . . Effects 2 | . . . . . . . 2 . . . Matter Fused 2 | . . . . . . . 2 . . . Overload Shots . | . . . . . . . . . . . Overflow Damage 569 | . . 1 . . . 4 265 61 6 232 Projectiles 23 | . . . . . . . 21 2 . . Explosions 43 | . . 1 . . . 4 31 1 6 . Melee 503 | . . . . . . . 213 58 . 232 Knockbacks 4 | . . . . . . . 4 . . . Impact . | . . . . . . . . . . . Kinetic 3 | . . . . . . . 3 . . . Secondary 1 | . . . . . . . 1 . . . Self-Inflicted Damage 137 | . 19 89 . . . 17 12 . . . Shots 5 | . 1 4 . . . . . . . . Rammed 7 | . . . . . . 4 3 . . . Targets Rammed 7 | . . . . . . 4 3 . . . Kicked . | . . . . . . . . . . . Crushed . | . . . . . . . . . . . Highest Temperature 433 | . 44 . 116 54 6 433 162 140 . 64 Average Temperature 43 | . 16 . 31 20 4 156 37 46 . 24 Received Heat Transfer 1324 | . 264 . 246 114 9 332 63 143 63 90 Effects 3 | . . . . . . 3 . . . . Energy Bleed 1 | . . . . . . 1 . . . . Matter Decay 1 | . . . . . . 1 . . . . Short Circuit 1 | . . . . . . 1 . . . . Siege Activations . | . . . . . . . . . . . Martial Activations . | . . . . . . . . . . . Shielding Activations . | . . . . . . . . . . . Robots Disrupted . | . . . . . . . . . . . Combat Hostiles . | . . . . . . . . . . . Robots Corrupted . | . . . . . . . . . . . Combat Hostiles . | . . . . . . . . . . . Parts Fried 2 | . . . . . . 1 . 1 . . Impact Corruptions . | . . . . . . . . . . . Robots Melted . | . . . . . . . . . . . Combat Hostiles . | . . . . . . . . . . . Parts Melted 3 | . . . . . . 3 . . . . Heat Transferred 1205 | . . . . . . 798 111 259 . 37 Parts Sabotaged . | . . . . . . . . . . . Parts Stolen . | . . . . . . . . . . . Parts Stripped . | . . . . . . . . . . . Power Chain Reactions 9 | . 1 . 1 . . 7 . . . . Alert | -11 -10 -10 -9 -9 -9 -9 -6 -6 -6 -6 ------- Run | Yrd Mat Min Mat Sto Rec Scr Fac Ext Cet Arc Maximum Alert Level 2 | . 1 . . . . . 1 2 . . Low Security (%) 97 | 100 97 100 100 100 100 . 98 77 100 100 Level 1 . | . 2 . . . . . 1 2 . . Level 2 1 | . . . . . . . . 19 . . Level 3 . | . . . . . . . . . . . Level 4 . | . . . . . . . . . . . Level 5 . | . . . . . . . . . . . High Security . | . . . . . . . . . . . Max Security . | . . . . . . . . . . . Peak Influence 517 | 5 209 164 118 108 116 . 219 517 64 5 Initial 62 | . . 62 3 37 35 . . . 56 . Average 25 | 2 53 26 45 35 21 . 23 116 27 . Influence Increases 3275 | 15 454 169 559 309 320 . 325 1074 28 22 Destroy 0b10 Robot/C 1400 | . 260 60 340 160 80 . 80 420 . . Destroy 0b10 Robot/NC 205 | 15 20 5 50 10 10 . 30 40 5 20 Destroy Leader 336 | . 74 10 106 60 . . 24 62 . . Allied During Kill 256 | . . . . . 37 . . 219 . . Successful Hack 62 | . 24 . 5 16 11 . 6 . . . Select Force Hacks 180 | . . . . . 180 . . . . . Disable Machine 195 | . 60 30 30 15 . . 15 45 . . Destroy Structure 206 | . 16 64 13 3 2 . 50 33 23 2 Partial Spotted 15 | . . . . . . . . 15 . . Lose Combat Pursuer 420 | . . . 15 45 . . 120 240 . . Influence Decreases 3275 | 15 293 320 481 305 412 . 325 974 128 22 Entered New Map 258 | . . 99 7 51 57 . . . 44 . Time Decay 1816 | 15 273 221 366 204 286 . 173 234 24 20 Lost Part 173 | . 20 . 19 50 . . 2 20 60 2 Lost Ally 222 | . . . . . . . . 222 . . Purge Threat 806 | . . . 89 . 69 . 150 498 . . Squads Dispatched 17 | . 4 . 3 1 . . 4 5 . . Investigation 6 | . 2 . . . . . 2 2 . . Extermination 2 | . . . . . . . 2 . . . Reinforcement 9 | . 2 . 3 1 . . . 3 . . Assault . | . . . . . . . . . . . Garrison . | . . . . . . . . . . . Intercept . | . . . . . . . . . . . Searches Triggered . | . . . . . . . . . . . Construction Impeded . | . . . . . . . . . . . Haulers Reinforced . | . . . . . . . . . . . Active Scanning Responses . | . . . . . . . . . . . Cargo Convoy Interrupts . | . . . . . . . . . . . Stealth | -11 -10 -10 -9 -9 -9 -9 -6 -6 -6 -6 --------- Run | Yrd Mat Min Mat Sto Rec Scr Fac Ext Cet Arc Distress Signals 14 | . . . 1 4 . . 2 6 1 . Communications Jammed . | . . . . . . . . . . . Distress Signals . | . . . . . . . . . . . Times Spotted 164 | . 19 12 27 14 4 27 15 38 4 4 Peak Tracking Total 11 | . 3 3 6 6 2 6 11 5 5 4 Tactical Retreats 17 | . . . 1 3 . 1 2 10 . . Traps | -11 -10 -10 -9 -9 -9 -9 -6 -6 -6 -6 ------- Run | Yrd Mat Min Mat Sto Rec Scr Fac Ext Cet Arc Traps Triggered 6 | . 1 . . . . . . 5 . . Indirectly . | . . . . . . . . . . . Trap Hack Attempts . | . . . . . . . . . . . Triggered . | . . . . . . . . . . . Disarmed . | . . . . . . . . . . . Reprogrammed . | . . . . . . . . . . . Reused . | . . . . . . . . . . . Traps Extracted . | . . . . . . . . . . . Installed . | . . . . . . . . . . . Triggered . | . . . . . . . . . . . Machines | -11 -10 -10 -9 -9 -9 -9 -6 -6 -6 -6 ---------- Run | Yrd Mat Min Mat Sto Rec Scr Fac Ext Cet Arc Machines Disabled 18 | . 4 2 2 1 . 5 1 3 . . Max in Single Turn 2 | . 2 1 1 1 . 1 1 . . . Garrison Access 1 | . . . . . . . 1 . . . Machines Repaired . | . . . . . . . . . . . Machines Dismantled . | . . . . . . . . . . . Machines Sabotaged . | . . . . . . . . . . . Overloaded Fab Kills . | . . . . . . . . . . . Hacking | -11 -10 -10 -9 -9 -9 -9 -6 -6 -6 -6 --------- Run | Yrd Mat Min Mat Sto Rec Scr Fac Ext Cet Arc Machines Accessed 57 | . 7 . 6 3 16 6 11 8 . . Terminals 31 | . 6 . 3 3 6 . 5 8 . . Fabricators 2 | . . . . . . . 2 . . . Repair Stations 3 | . 1 . 1 . . . 1 . . . Recycling Units 11 | . . . 1 . 8 . 2 . . . Scanalyzers 1 | . . . 1 . . . . . . . Garrison Access 1 | . . . . . . . 1 . . . Total Hacks 213 | . 22 . 22 7 67 41 27 27 . . Successful 151 | . 11 . 12 3 45 41 22 17 . . Failed 61 | . 11 . 10 4 21 . 5 10 . . Catastrophic 2 | . . . 1 1 . . . . . . Database Lockouts 1 | . . . . . 1 . . . . . Manual 81 | . 19 . 8 3 18 . 19 14 . . Terminals 102 | . 20 . 11 7 20 . 17 27 . . Fabricators 5 | . . . . . . . 5 . . . Repair Stations 6 | . 2 . 2 . . . 2 . . . Recycling Units 26 | . . . 2 . 22 . 2 . . . Scanalyzers 7 | . . . 7 . . . . . . . Garrison Access 1 | . . . . . . . 1 . . . Terminal Hacks 105 | . 6 . 1 3 33 41 9 12 . . Record 65 | . . . . . 24 41 . . . . Part Schematic 4 | . 2 . . . 1 . 1 . . . Robot Analysis 2 | . . . . . 1 . . 1 . . Prototype ID Bank 3 | . . . . . 2 . . 1 . . Open Door 3 | . . . . . . . . 3 . . Branch Access Points 3 | . . . . 1 1 . 1 . . . Terminal Index 2 | . 1 . . . . . 1 . . . Fabricator Index 1 | . . . . . . . 1 . . . Alert Level 3 | . . . . . 1 . 1 1 . . Unreport Threat 8 | . . . 1 . 2 . 1 4 . . Locate Traps 6 | . 2 . . 2 . . 1 1 . . Recall Investigation 1 | . . . . . . . . 1 . . Registered Components 2 | . 1 . . . . . 1 . . . Zone Layout 1 | . . . . . . . 1 . . . Release Object 1 | . . . . . 1 . . . . . Fabricator Hacks 2 | . . . . . . . 2 . . . Load Schematic 2 | . . . . . . . 2 . . . Repair Station Hacks 5 | . 2 . 1 . . . 2 . . . Scan Component 3 | . 1 . 1 . . . 1 . . . Repair 2 | . 1 . . . . . 1 . . . Recycling Unit Hacks 8 | . . . 1 . 5 . 2 . . . Retrieve Components 8 | . . . 1 . 5 . 2 . . . Scanalyzer 7 | . . . 7 . . . . . . . Insert Component 4 | . . . 4 . . . . . . . Analyze 3 | . . . 3 . . . . . . . Garrison Access Hacks 1 | . . . . . . . 1 . . . Seal Access 1 | . . . . . . . 1 . . . Unauthorized Hacks 23 | . 3 . 2 . 7 . 6 5 . . Terminals 15 | . 3 . 2 . 1 . 4 5 . . Assimilate 2 | . . . . . . . 1 1 . . Botnet 6 | . 2 . 1 . 1 . 2 . . . Disrupt 4 | . . . . . . . . 4 . . Operators 3 | . 1 . 1 . . . 1 . . . Fabricators 2 | . . . . . . . 2 . . . Recompile 2 | . . . . . . . 2 . . . Repair Stations . | . . . . . . . . . . . Recycling Units 6 | . . . . . 6 . . . . . Tunnel 6 | . . . . . 6 . . . . . Scanalyzers . | . . . . . . . . . . . Garrison Access . | . . . . . . . . . . . Data Cores Recovered . | . . . . . . . . . . . Used . | . . . . . . . . . . . Hacking Detections 34 | . 5 . 4 3 8 . 7 7 . . Full Trace Events 5 | . 1 . . . 3 . . 1 . . Feedback Events . | . . . . . . . . . . . Feedback Blocked . | . . . . . . . . . . . Robot Schematics Acquired . | . . . . . . . . . . . Robots Built . | . . . . . . . . . . . Authchips . | . . . . . . . . . . . Time . | . . . . . . . . . . . Total Robot Build Rating . | . . . . . . . . . . . Part Schematics Acquired 7 | . 2 . 3 . 1 . 1 . . . Parts Built . | . . . . . . . . . . . Authchips . | . . . . . . . . . . . Time . | . . . . . . . . . . . Total Part Build Rating . | . . . . . . . . . . . Parts Repaired 2 | . 1 . . . . . 1 . . . Time 70 | . 26 . . . . . 44 . . . Parts Recycled . | . . . . . . . . . . . Recycled Matter . | . . . . . . . . . . . Retrieved Matter . | . . . . . . . . . . . Retrieved Components 29 | . . . 10 . 14 . 5 . . . Parts Scanalyzed 3 | . . . 3 . . . . . . . Part Schematics Acquired 3 | . . . 3 . . . . . . . Parts Damaged . | . . . . . . . . . . . Bothacking | -11 -10 -10 -9 -9 -9 -9 -6 -6 -6 -6 ------------ Run | Yrd Mat Min Mat Sto Rec Scr Fac Ext Cet Arc Used RIF Installer . | . . . . . . . . . . . Robots Hacked . | . . . . . . . . . . . Non-combat . | . . . . . . . . . . . Combat . | . . . . . . . . . . . Robot Hacks Applied . | . . . . . . . . . . . Relay Couplers Released . | . . . . . . . . . . . Fabnet Peak Effective % . | . . . . . . . . . . . Robots Rewired 40 | . . . . . 29 . . 11 . . Allies Hacked . | . . . . . . . . . . . Hacks Repelled . | . . . . . . . . . . . Allies | -11 -10 -10 -9 -9 -9 -9 -6 -6 -6 -6 -------- Run | Yrd Mat Min Mat Sto Rec Scr Fac Ext Cet Arc Total Allies 44 | . . . . . 29 . 1 14 . . Largest Group 28 | . . . . . 28 27 1 8 . . Highest-Rated Group 364 | . . . . . 364 356 26 362 . . Highest-Rated Ally 159 | . . . . . 27 27 26 159 . . Total Orders 6 | . . . . . . . 2 4 . . STAY 4 | . . . . . . . 1 3 . . FOLLOW 2 | . . . . . . . 1 1 . . Ally Attacks 164 | . . . . . 13 40 . 111 . . Total Damage 3476 | . . . . . 276 756 . 2444 . . Kills 36 | . . . . . 4 10 . 22 . . Allies Corrupted 1 | . . . . . . . . 1 . . Allies Melted 3 | . . . . . . 2 . 1 . . Intel | -11 -10 -10 -9 -9 -9 -9 -6 -6 -6 -6 ------- Run | Yrd Mat Min Mat Sto Rec Scr Fac Ext Cet Arc Active Infowar (turns) 15261 | 60 989 1165 1021 460 1867 1704 1132 1242 3 5618 Sensors 7995 | . . . . . . . 1132 1242 3 5618 Seismic 7266 | 60 989 1165 1021 460 1867 1704 . . . . Robot Analysis Total 2 | . . . . . 1 . . 1 . . Derelict Logs Recovered 1 | . . 1 . . . . . . . . Drone Launches . | . . . . . . . . . . . Drone Recoveries . | . . . . . . . . . . . Exploration | -11 -10 -10 -9 -9 -9 -9 -6 -6 -6 -6 ------------- Run | Yrd Mat Min Mat Sto Rec Scr Fac Ext Cet Arc Turns Passed 16867 | 95 1125 1165 1021 460 1867 2204 1141 1311 90 6388 Spaces Moved 7470 | 65 799 584 525 184 711 1762 1405 1209 80 146 Core 4 | 3 . . . . . 1 . . . . Treads . | . . . . . . . . . . . Legs . | . . . . . . . . . . . Wheels 4626 | 62 799 584 525 184 711 1761 . . . . Hover 2840 | . . . . . . . 1405 1209 80 146 Flight . | . . . . . . . . . . . Fastest Speed 48 | 50 90 105 110 110 110 90 48 63 68 48 Average Speed 90 | 88 102 107 122 118 110 113 52 63 89 58 Slowest Speed 900 | 90 120 110 170 155 110 900 110 63 147 115 Overloaded Moves . | . . . . . . . . . . . Propulsion Burnouts . | . . . . . . . . . . . Robots Hopped . | . . . . . . . . . . . Potential Cave-ins . | . . . . . . . . . . . Cave-ins Triggered . | . . . . . . . . . . . Exploration Rate (%) 62 | 6 96 85 47 29 99 95 39 83 49 54 Regions Visited 10 Branch Regions 7 Pre-discovered Areas 6 | . . . . . 6 . . . . . Known Exits Taken 5 | . . . . 1 . 1 1 1 1 . Unknown Exits Taken 5 | 1 1 1 1 . 1 . . . . . Scrap Searched 12 | . . 1 . . . 11 . . . . Spaces Dug 35 | . . . . . . . 24 9 . 2 Terrain Destroyed 282 | . 14 76 12 . . 24 62 33 57 4 Melee 19 | . . . . . . . 14 4 . 1 Projectile 32 | . . . . . . . 22 7 . 3 AOE 231 | . 14 76 12 . . 24 26 22 57 . Terrain Rammed . | . . . . . . . . . . . Walls Destroyed . | . . . . . . . . . . . Machines Disabled . | . . . . . . . . . . . Actions | -11 -10 -10 -9 -9 -9 -9 -6 -6 -6 -6 --------- Run | Yrd Mat Min Mat Sto Rec Scr Fac Ext Cet Arc Total 17033 | 87 1005 1108 771 374 1787 1955 1718 1702 94 6432 Wait 8585 | 2 103 480 133 153 769 135 185 365 8 6252 Move 7460 | 64 798 583 524 183 710 1761 1404 1208 79 146 Hop . | . . . . . . . . . . . Pick Up 75 | 6 21 5 5 3 8 9 14 . . 4 Fast Attach 28 | 7 2 . 1 2 1 4 4 1 . 6 Attach 26 | . 1 . 3 2 . 3 11 1 2 3 Detach 8 | . . . . . . . 2 2 1 3 Swap 87 | . 12 11 20 2 4 4 18 10 2 4 Drop 79 | 1 11 11 13 3 8 14 14 1 . 3 Fire 266 | 7 57 18 72 26 5 21 35 19 2 4 Melee 53 | . . . . . . . 28 18 . 7 Ram 7 | . . . . . . 4 3 . . . Kick . | . . . . . . . . . . . Crush . | . . . . . . . . . . . Escape Stasis 42 | . . . . . . . . 42 . . Rewire 317 | . . . . . 282 . . 35 . . Trap . | . . . . . . . . . . . Miscellaneous . | . . . . . . . . . . . Route ------- -11/Scrapyard -10/Materials (discovered 5 exits: *Mat x3 / [*Min x2]) -10/Mines (discovered 2 exits: *Mat / [*Sub]) -9/Materials (discovered 2 exits: [*Mat] / *Sto) -9/Storage -9/Recycling (discovered 2 exits: [*Fac] / *Scr) -9/Scraptown (discovered 2 exits: *Fac x2) -6/Factory (discovered 5 exits: [*Fac] / Low x2 / *Ext x2) -6/Extension (discovered 2 exits: [*Fac] / *Cet) -6/Cetus -6/Archives History --------- Turn | Location | Event 12 | -11/Scrapyard | Discovered new exit (range 16) 96 | -11/Scrapyard | Entered Materials 274 | -10/Materials | Discovered new exit (range 10) 312 | -10/Materials | Build established: Mutant 340 | -10/Materials | Discovered new exit (range 14) 833 | -10/Materials | Discovered new exit (range 12) 907 | -10/Materials | Discovered new exit (range 10) 1013 | -10/Materials | Discovered new exit (range 14) 1145 | -10/Materials | Repaired Seismic Detector 1221 | -10/Materials | Entered Mines 1243 | -10/Mines | Met a Derelict bent on vengeance 1452 | -10/Mines | Discovered new exit (range 10) 1458 | -10/Mines | Learned Materials stockpile data 1524 | -10/Mines | Assembled infested the area 1660 | -10/Mines | Build established: Scavenger-Mutant 2177 | -10/Mines | Discovered new exit (range 11) 2231 | -10/Mines | Found a damaged Exp. Sensor Array with a note attached 2235 | -10/Mines | Found Prototype Device 2386 | -10/Mines | Entered Materials 2386 | -9/Materials | Evolved 2 slots: Utility x2 2446 | -9/Materials | Identified Exp. Sensor Array 2928 | -9/Materials | Discovered new exit (range 8) 2955 | -9/Materials | Discovered new exit (range 11) 3407 | -9/Materials | Entered Storage 3609 | -9/Storage | Identified exit to Recycling 3732 | -9/Storage | Lost 5 parts (1p2n2u) 3863 | -9/Storage | Used back door to open Recycling access 3867 | -9/Storage | Entered Recycling 4412 | -9/Recycling | Build established: Commander-Mutant 4713 | -9/Recycling | Discovered new exit (range 16) 5222 | -9/Recycling | Scanned before Scraplab entrance 5237 | -9/Recycling | Entered Scraplab 5246 | -9/Recycling | Discovered new exit (range 3) 5734 | -9/Recycling | Entered Scraptown 5734 | -9/Scraptown | Accompanied by 27 allies 5775 | -9/Scraptown | Heard Great Nut preacher, LISTEN AND RECITE! 6106 | -9/Scraptown | Visited Shadow of the Wyrm 6125 | -9/Scraptown | Visited Bundlers 6218 | -9/Scraptown | Visited CPS Storage 6313 | -9/Scraptown | Discovered new exit (range 9) 6425 | -9/Scraptown | Visited Spacefarers 6483 | -9/Scraptown | Visited Fellowship of the Rings 6535 | -9/Scraptown | Visited Comm Corps 6770 | -9/Scraptown | Visited UFD Registry 6770 | -9/Scraptown | Registered with UFD as "Powerninja" 6797 | -9/Scraptown | Visited Scrapoid Research Area 6847 | -9/Scraptown | Visited Derelict Rescue Squad 6862 | -9/Scraptown | Found DRS Beacon 6891 | -9/Scraptown | Visited Supply Room 6952 | -9/Scraptown | Visited LU-1G1's Boring Crew 7037 | -9/Scraptown | Visited Chapter 10 7073 | -9/Scraptown | Visited Scrap Suit Storage 7114 | -9/Scraptown | Visited Junk Repository 7323 | -9/Scraptown | Visited Science Testing Area 7345 | -9/Scraptown | Visited Modified Component R&D 7433 | -9/Scraptown | Visited Infowarlord's Domain 7438 | -9/Scraptown | Found Exp. Signal Interpreter 7475 | -9/Scraptown | Met Optimus 7475 | -9/Scraptown | Accepted into 0bPrime 7743 | -9/Scraptown | Civil war broke out across Scraptown 7817 | -9/Scraptown | Identified exit to Factory 7918 | -9/Scraptown | Optimus destroyed in the chaos of civil war 7934 | -9/Scraptown | Core integrity fell below 50% 7938 | -9/Scraptown | Entered Factory 7938 | -6/Factory | Evolved 6 slots: Propulsion x3, Utility x3 7951 | -6/Factory | Lost 29 allies 7967 | -6/Factory | Lost 5 parts (1p2n1u1w) 8054 | -6/Factory | Repaired Gravmag System 8359 | -6/Factory | Build established: Scavenger-Mutant 8634 | -6/Factory | Identified exit to Lower Caves 8634 | -6/Factory | Identified exit to Extension 8682 | -6/Factory | Build established: Hacker-Mutant 8707 | -6/Factory | Discovered new exit (range 13) 9079 | -6/Factory | Entered Extension 9079 | -6/Extension | Accompanied by 1 ally 9813 | -6/Extension | Lost 3 allies 9859 | -6/Extension | Rescued A7 10217 | -6/Extension | Spotted B-75 Beast 10222 | -6/Extension | Spotted B-75 Beast 10315 | -6/Extension | Rescued a captive Derelict 10332 | -6/Extension | Rescued a captive Derelict 10385 | -6/Extension | Discovered new exit (range 10) 10386 | -6/Extension | Discovered new exit (range 6) 10389 | -6/Extension | Identified exit to Cetus 10390 | -6/Extension | Entered Cetus 10418 | -6/Cetus | Spotted Cetus Guard 10418 | -6/Cetus | Spotted Cetus Guard 10426 | -6/Cetus | Spotted Cetus Guard 10426 | -6/Cetus | Spotted Cetus Guard 10430 | -6/Cetus | Core integrity fell below 50% 10445 | -6/Cetus | Cetus Manufacturing Module disabled 10451 | -6/Cetus | Core integrity fell below 20% 10469 | -6/Cetus | Discovered new exit (range 16) 10480 | -6/Cetus | Identified exit to Archives 10480 | -6/Cetus | Entered Archives 10488 | -6/Archives | Lost 8 parts (1p4n1u2w) 16868 | -6/Archives | Destroyed by Y-64 Sentinel with Wave Gun Last Messages --------------- 12197_ Sneak attack on O-32 Director. 12197_ Destroyed Lgt. Angular Momentum Engine. 12983_ Sneak attack on O-32 Director. 12983_ Destroyed Lgt. Angular Momentum Engine. 12983_ O-32 Director destroyed. 12988_ Acquired Gravmag System. 12990_ Dropped Gravmag System. 12991_ Dropped Lgt. Fission Core. 12992_ Acquired Gravmag System. 16854_ Acquired 31 matter. 16863_ Slug penetrates Y-64 Sentinel. 16864_ Critical hit (Burn: +37). 16864_ Penetrated by Slug. 16865_ Gravmag System destroyed. 16865_ Penetrated by Slug. 16865_ Archive Hub disabled. 16867_ Penetrated by Slug. 16867_ Slug penetrates Y-64 Sentinel. 16868_ Critical hit (Burn: +37). 16868_ Penetrated by Slug. Map ----- +----------------------------------------------------+ | | | | | | | | | | | ????????????????????????????????????????????? | | ????????????????????????????????????????????? | | ????????????????????????????????????????????? | | ????????????????????????????????????????????? | | ????????????????????????????????????????????? | | ????????????????????????????????????????????? | | ????????????????????????????????????????????? | | ????????????????????????????????????????????? | | ????????????????????????????????????????????? | | ????????????????????????????????????????????? | | ????????????????????????????????????????????? | | ??????????????????????" ????????????????????? | | ?????????????????###"#"##???????????????????? | | ?????????????????#"""""""#??????????????????? | | ???????????##????#"""V"""#?? #??????????????? | | ?????????## #????#""" ""#? #??????????????? | | ????????## #???###" ""# ##?????????????? | | ??#######;;#####;Y Y##????????????? | | ??# ! """???????????? | | ??# * """???????????? | | ??# @ ""???????????? | | ??#####+######### V"??????????? | | ??# #""" """??????????? | | ??# / #"""" """???????????? | | ??# """"""" ""????????????? | | ??#"""""""""#"V ##????????????? | | ??#""""""""""""" ???????????? | | ??#"""""""""#"""" ???????????? | | ??#"""""""""#"""" ???????????? | | ??###############Y o Y###???????????? | | ????????????????## #"" ""##?????????????? | | ?????????????????# #""" """#??????????????? | | ?????????????????# o #"""V"""???????????????? | | ?????????????????# #????""????????????????? | | ?????????????????# #??????????????????????? | | ?????????????????? #??????????????????????? | | ?????????????????? #??????????????????????? | | ?????????????????? ???????????????????????? | | ????????????????????????????????????????????? | | ????????????????????????????????????????????? | | ????????????????????????????????????????????? | | ????????????????????????????????????????????? | | ????????????????????????????????????????????? | | ????????????????????????????????????????????? | | ????????????????????????????????????????????? | +----------------------------------------------------+ Best States ------------- Heat Dissipation 37 Energy Generation 18 Energy Capacity 265 Matter Stores 300 Matter Capacity 300 Sight Range 16 Robot Scan Range 20 Terrain Scan Density 10 Armor Coverage 450 Evasion (%) 55 Recoil Reduction 1 Offensive Hacking 44 Defensive Hacking 12 Authchip Count 9 Item Schematics ----------------- Hcp. Storage Unit | -10/Materials | Hacked Huge Storage Unit | -10/Materials | Hacked Lrg. Storage Unit | -9/Materials | Scanalyzed Med. Armor Plating | -9/Materials | Scanalyzed Lgt. Assault Rifle | -9/Materials | Scanalyzed Signal Interpreter | -9/Recycling | Hacked Hvy. Reactive Plating | -6/Factory | Hacked Robot Schematics ------------------ None Fabricated ------------ Nothing Repaired ---------- Seismic Detector | 40% | -10/Materials Gravmag System | 35% | -6/Factory Alien Tech Used ----------------- None Achievements -------------- None Challenges ------------ None Game ------ Seed NullSwordHammer Manual? 0 Play Time 02:08:38 Cumulative 372.0 hours Start 2025.05.27 @ 14:46:56 End 2025.05.27 @ 17:06:45 Sessions 1 Manual Loads 0 Difficulty Rogue Special Mode None Game No. 193 Rogue 193 Adventurer 0 Explorer 0 Win Type - Total 4 Types 4/0/0/0/0/0/0/0/0/0 Lore% 61 Gallery% 66 Achievement% 63 Wizard Run 0 Options --------- Layout 0 ASCII 0 Keyboard 1 Movement Vi Keybinds 0 Fullscreen 2 Font 18/SmallcapsGlow Map View 76x50 Zoom Use 0% Tactical HUD 1 Map Filters NONE Filters NONE Steam 1 RUN: 958d41ee-0dd6-45ca-ada3-ca62e0f8b167